fUSD/lending_fUSD_20260203
["ID","MTS","AMOUNT","RATE_DAILY","PERIOD"]
[404412789,1770117866699,500.0,7.682e-05,2]
[404412790,1770117866744,500.0,7.682e-05,2]
[404412791,1770117866785,500.0,7.682e-05,2]
[404412792,1770117867069,500.0,7.682e-05,2]
[404412793,1770117867396,500.0,7.682e-05,2]
[404412794,1770117867447,500.0,7.682e-05,2]
[404412795,1770117867490,491.69694358,7.682e-05,2]
[404412796,1770117867515,8.30305642,7.682e-05,2]
[404412797,1770117867556,500.0,7.682e-05,2]
[404412798,1770117867597,500.0,7.682e-05,2]
[404412799,1770117867643,500.0,7.682e-05,2]
[404412800,1770117867680,500.0,7.682e-05,2]
[404412801,1770117867721,500.0,7.682e-05,2]
[404412802,1770117867767,500.0,7.682e-05,2]
[404412803,1770117867805,500.0,7.682e-05,2]
[404412804,1770117867850,500.0,7.682e-05,2]
[404412805,1770117901684,239.0,7.682e-05,2]
[404412806,1770117901720,752.70694358,7.682e-05,2]
[404412807,1770117901740,447.29305642,7.682e-05,2]
[404412808,1770117910737,264.01660534,7.682e-05,2]
[404412809,1770117925146,343.07874106,7.682e-05,2]
[404412810,1770117940145,438.46730426,7.683e-05,2]
[404412811,1770117953245,204.02408674,7.682e-05,2]
[404412813,1770118000749,3303.13020618,7.583e-05,2]
[404412814,1770118000776,5000.01,7.583e-05,2]
[404412815,1770118000804,5000.01,7.583e-05,2]
[404412816,1770118000830,5000.01,7.583e-05,2]
[404412817,1770118000854,5000.01,7.583e-05,2]
[404412818,1770118000879,5000.01,7.583e-05,2]
[404412819,1770118000906,5000.01,7.583e-05,2]
[404412820,1770118000937,10000.01,7.583e-05,2]
[404412821,1770118000965,10000.01,7.583e-05,2]
[404412822,1770118000991,10000.01,7.583e-05,2]
[404412823,1770118001016,10000.01,7.583e-05,2]
[404412824,1770118001043,10000.01,7.583e-05,2]
[404412825,1770118001070,10000.01,7.583e-05,2]
[404412826,1770118001096,10000.01,7.583e-05,2]
[404412827,1770118001122,10000.01,7.583e-05,2]
[404412828,1770118001150,10000.01,7.583e-05,2]
[404412829,1770118001176,5000.01,7.583e-05,2]
[404412830,1770118001202,5000.01,7.583e-05,2]
[404412831,1770118001647,-250.00209646,7.583e-05,2]
[404412832,1770118003171,-241.10012185,7.583e-05,2]
[404412833,1770118006398,-302.0,7.583e-05,2]
[404412834,1770118007973,-252.76591589,7.583e-05,2]
[404412835,1770118009420,-302.0,7.583e-05,2]
[404412836,1770118013776,-362.88705281,7.583e-05,2]
[404412837,1770118015133,-302.0,7.583e-05,2]
[404412838,1770118017283,-306.0443971,7.583e-05,2]
[404412839,1770118021518,-395.2892395,7.583e-05,2]
[404412840,1770118022004,150.0,7.582e-05,2]
[404412841,1770118022356,300.0,7.582e-05,2]
[404412842,1770118022976,-318.49932487,7.583e-05,2]
[404412843,1770118025759,-560.22087833,7.583e-05,2]
[404412844,1770118029329,-313.97609342,7.583e-05,2]
[404412845,1770118031381,-373.99821254,7.583e-05,2]
[404412846,1770118033645,-199.75245602,7.583e-05,2]
[404412847,1770118036293,-488.02390658,7.583e-05,2]
[404412848,1770118038366,-550.0,7.583e-05,2]
[404412849,1770118039890,-186.75781478,7.583e-05,2]
[404412850,1770118042385,-560.22087833,7.583e-05,2]
[404412851,1770118045472,-205.10128485,7.583e-05,2]
[404412852,1770118048493,-450.74110851,7.583e-05,2]
[404412853,1770118050539,-281.24012483,7.583e-05,2]
[404412854,1770118052765,-1803.0,7.583e-05,2]
[404412855,1770118054819,-343.92403158,7.583e-05,2]
[404412856,1770118056823,-452.0,7.583e-05,2]
[404412857,1770118058788,-337.02390658,7.583e-05,2]
[404412858,1770118060304,292.31153616,7.583e-05,2]
[404412859,1770118061339,-245.06346995,7.583e-05,2]
[404412860,1770118063497,-280.77359984,7.583e-05,2]
[404412861,1770118065678,-433.69,7.583e-05,2]
[404412862,1770118068224,-500.0,7.583e-05,2]
[404412863,1770118069655,-200.0,7.583e-05,2]
[404412864,1770118071707,-573.71642087,7.583e-05,2]
[404412865,1770118074362,-495.08626065,7.583e-05,2]
[404412866,1770118075863,-184.59508807,7.583e-05,2]
[404412867,1770118077461,-198.0,7.583e-05,2]
[404412868,1770118079534,-500.0,7.583e-05,2]
[404412869,1770118080968,-302.0,7.583e-05,2]
[404412870,1770118082187,300.0,7.582e-05,2]
[404412871,1770118084138,-223.42942549,7.583e-05,2]
[404412872,1770118086241,-651.0,7.583e-05,2]
[404412873,1770118088813,-174.59224297,7.583e-05,2]
[404412874,1770118091036,-1073.24458984,7.583e-05,2]
[404412875,1770118092538,-215.54946833,7.583e-05,2]
[404412876,1770118095645,-500.0,7.583e-05,2]
[404412877,1770118096756,-1272.99443318,7.583e-05,2]
[404412878,1770118099916,-304.60692626,7.583e-05,2]
[404412879,1770118101607,-250.0,7.583e-05,2]
[404412880,1770118103687,-193.0,7.583e-05,2]
[404412881,1770118105632,-948.24399851,7.583e-05,2]
[404412882,1770118107131,-560.22087833,7.583e-05,2]
[404412883,1770118109092,-471.24218522,7.583e-05,2]
[404412884,1770118110562,-302.0,7.583e-05,2]
[404412885,1770118110992,3957.69846384,7.573e-05,2]
[404412886,1770118111014,5000.01,7.573e-05,2]
[404412887,1770118111034,5000.01,7.573e-05,2]
[404412888,1770118111053,5000.01,7.573e-05,2]
[404412889,1770118111074,5000.01,7.573e-05,2]
[404412890,1770118111094,5000.01,7.573e-05,2]
[404412891,1770118111119,5000.01,7.573e-05,2]
[404412892,1770118111139,5000.01,7.573e-05,2]
[404412893,1770118111161,4658.42626274,7.573e-05,2]
[404412894,1770118112031,-500.0,7.583e-05,2]
[404412895,1770118112506,341.58373726,7.582e-05,2]
[404412896,1770118112530,204.45334756,7.582e-05,2]
[404412897,1770118112584,359.24046955,7.582e-05,2]
[404412898,1770118114740,500.0,7.582e-05,2]
[404412899,1770118114795,436.75415674,7.582e-05,2]
[404412900,1770118114858,500.0,7.582e-05,2]
[404412901,1770118114949,500.0,7.582e-05,2]
[404412902,1770118115010,500.0,7.582e-05,2]
[404412903,1770118115075,500.0,7.582e-05,2]
[404412904,1770118115160,500.0,7.582e-05,2]
[404412905,1770118115236,500.0,7.582e-05,2]
[404412906,1770118115310,500.0,7.582e-05,2]
[404412907,1770118115388,500.0,7.582e-05,2]
[404412908,1770118115449,500.0,7.582e-05,2]
[404412909,1770118115506,500.0,7.582e-05,2]
[404412910,1770118115578,500.0,7.582e-05,2]
[404412911,1770118115627,500.0,7.582e-05,2]
[404412912,1770118115689,500.0,7.582e-05,2]
[404412913,1770118115742,500.0,7.582e-05,2]
[404412914,1770118115806,500.0,7.582e-05,2]
[404412915,1770118115855,500.0,7.582e-05,2]
[404412916,1770118115908,499.56202615,7.582e-05,2]
[404412917,1770118115934,0.43797385,7.582e-05,2]
[404412918,1770118116303,500.0,7.582e-05,2]
[404412919,1770118116359,500.0,7.582e-05,2]
[404412920,1770118116414,500.0,7.582e-05,2]
[404412921,1770118116462,500.0,7.582e-05,2]
[404412922,1770118116512,500.0,7.582e-05,2]
[404412923,1770118116806,500.0,7.582e-05,2]
[404412924,1770118116854,401.0,5.891e-05,2]
[404412925,1770118116895,500.0,7.582e-05,2]
[404412926,1770118116947,500.0,7.582e-05,2]
[404412927,1770118117019,500.0,7.582e-05,2]
[404412928,1770118117073,500.0,7.582e-05,2]
[404412929,1770118117111,401.0,7.076e-05,2]
[404412930,1770118117164,500.0,7.582e-05,2]
[404412931,1770118117211,401.0,6.047e-05,2]
[404412932,1770118117253,500.0,7.582e-05,2]
[404412933,1770118117309,500.0,7.582e-05,2]
[404412934,1770118117369,500.0,7.582e-05,2]
[404412935,1770118117428,500.0,7.582e-05,2]
[404412936,1770118117468,401.0,7.289e-05,2]
[404412937,1770118117521,500.0,7.582e-05,2]
[404412938,1770118117585,395.57202615,7.582e-05,2]
[404412939,1770118117610,104.42797385,7.582e-05,2]
[404412940,1770118117659,500.0,7.582e-05,2]
[404412941,1770118117708,535.99630296,5.441e-05,2]
[404412942,1770118117766,500.0,7.582e-05,2]
[404412943,1770118117828,500.0,7.582e-05,2]
[404412944,1770118117881,500.0,7.582e-05,2]
[404412945,1770118117933,500.0,7.582e-05,2]
[404412946,1770118117997,500.0,7.582e-05,2]
[404412947,1770118118093,215.71912636,7.582e-05,2]
[404412948,1770118118161,500.0,7.582e-05,2]
[404412949,1770118118352,-500.0,7.583e-05,2]
[404412950,1770118119462,-302.0,7.583e-05,2]
[404412951,1770118123821,-1045.99429143,7.583e-05,2]
[404412952,1770118125267,-302.0,7.583e-05,2]
[404412953,1770118126254,482.883945,7.583e-05,2]
[404412954,1770118126592,1338.10693468,7.583e-05,2]
[404412955,1770118126634,174.48261702,7.583e-05,2]
[404412956,1770118127221,1489.12501748,7.583e-05,2]
[404412957,1770118129578,-500.0,7.583e-05,2]
[404412958,1770118130966,204.69,7.552e-05,2]
[404412959,1770118132892,-560.22087833,7.583e-05,2]
[404412960,1770118134386,-1018.38061974,7.583e-05,2]
[404412961,1770118137079,-170.06855009,7.583e-05,2]
[404412962,1770118141981,-300.0,7.583e-05,2]
[404412963,1770118145067,500.0,7.582e-05,2]
[404412964,1770118145117,500.0,7.582e-05,2]
[404412965,1770118145184,500.0,7.582e-05,2]
[404412966,1770118145228,454.57808265,7.582e-05,2]
[404412967,1770118145254,45.42191735,7.582e-05,2]
[404412968,1770118145302,500.0,7.582e-05,2]
[404412969,1770118145352,500.0,7.582e-05,2]
[404412970,1770118145394,500.0,7.582e-05,2]
[404412971,1770118145435,500.0,7.582e-05,2]
[404412972,1770118145475,500.0,7.582e-05,2]
[404412973,1770118145515,500.0,7.582e-05,2]
[404412974,1770118145558,500.0,7.582e-05,2]
[404412975,1770118145601,500.0,7.582e-05,2]
[404412976,1770118145644,500.0,7.582e-05,2]
[404412977,1770118145686,500.0,7.582e-05,2]
[404412978,1770118145726,500.0,7.582e-05,2]
[404412979,1770118146016,500.0,7.582e-05,2]
[404412980,1770118146072,500.0,7.582e-05,2]
[404412981,1770118146115,500.0,7.582e-05,2]
[404412982,1770118146159,500.0,7.582e-05,2]
[404412983,1770118146195,-798.09722767,7.583e-05,2]
[404412984,1770118146236,500.0,7.582e-05,2]
[404412985,1770118146274,500.0,7.582e-05,2]
[404412986,1770118146317,500.0,7.582e-05,2]
[404412987,1770118146355,500.0,7.582e-05,2]
[404412988,1770118146401,454.58808265,7.582e-05,2]
[404412989,1770118146427,45.41191735,7.582e-05,2]
[404412990,1770118146468,500.0,7.582e-05,2]
[404412991,1770118146507,500.0,7.582e-05,2]
[404412992,1770118146549,500.0,7.582e-05,2]
[404412993,1770118146596,500.0,7.582e-05,2]
[404412994,1770118146639,500.0,7.582e-05,2]
[404412995,1770118146681,500.0,7.582e-05,2]
[404412996,1770118146727,500.0,7.582e-05,2]
[404412997,1770118146767,500.0,7.582e-05,2]
[404412998,1770118146810,500.0,7.582e-05,2]
[404412999,1770118146852,500.0,7.582e-05,2]
[404413000,1770118146895,485.16755471,7.582e-05,2]
[404413001,1770118146939,500.0,7.582e-05,2]
[404413002,1770118146986,500.0,7.582e-05,2]
[404413003,1770118147026,500.0,7.582e-05,2]
[404413004,1770118147354,500.0,7.582e-05,2]
[404413005,1770118147395,500.0,7.582e-05,2]
[404413006,1770118147446,500.0,7.582e-05,2]
[404413007,1770118147490,500.0,7.582e-05,2]
[404413008,1770118147540,500.0,7.582e-05,2]
[404413009,1770118147602,469.43052794,7.582e-05,2]
[404413010,1770118147627,30.56947206,7.582e-05,2]
[404413011,1770118148454,-300.0,7.583e-05,2]
[404413012,1770118150033,-1070.0,7.583e-05,2]
[404413013,1770118153405,-310.48239809,7.583e-05,2]
[404413014,1770118158448,-255.99999983,7.583e-05,2]
[404413015,1770118161187,-300.0,7.583e-05,2]
[404413016,1770118164640,-560.22087833,7.583e-05,2]
[404413017,1770118171247,-262.07596842,7.583e-05,2]
[404413018,1770118178936,-174.56232373,7.583e-05,2]
[404413019,1770118180478,194.87435744,7.583e-05,2]
[404413020,1770118181251,500.0,7.582e-05,2]
[404413021,1770118181297,500.0,7.582e-05,2]
[404413022,1770118181342,500.0,7.582e-05,2]
[404413023,1770118181383,500.0,7.582e-05,2]
[404413024,1770118181422,500.0,7.582e-05,2]
[404413025,1770118181468,500.0,7.582e-05,2]
[404413026,1770118181507,500.0,7.582e-05,2]
[404413027,1770118181546,500.0,7.582e-05,2]
[404413028,1770118181588,500.0,7.582e-05,2]
[404413029,1770118181626,500.0,7.582e-05,2]
[404413030,1770118181666,500.0,7.582e-05,2]
[404413031,1770118181705,500.0,7.582e-05,2]
[404413032,1770118181754,500.0,7.582e-05,2]
[404413033,1770118181796,500.0,7.582e-05,2]
[404413034,1770118181841,500.0,7.582e-05,2]
[404413035,1770118181880,500.0,7.582e-05,2]
[404413036,1770118181919,500.0,7.582e-05,2]
[404413037,1770118181963,500.0,7.582e-05,2]
[404413038,1770118182001,500.0,7.582e-05,2]
[404413039,1770118182050,274.5661705,7.582e-05,2]
[404413040,1770118182076,225.4338295,7.582e-05,2]
[404413041,1770118182117,500.0,7.582e-05,2]
[404413042,1770118182165,500.0,7.582e-05,2]
[404413043,1770118182204,500.0,7.582e-05,2]
[404413044,1770118182243,500.0,7.582e-05,2]
[404413045,1770118182282,500.0,7.582e-05,2]
[404413046,1770118182325,500.0,7.582e-05,2]
[404413047,1770118182369,500.0,7.582e-05,2]
[404413048,1770118182425,500.0,7.582e-05,2]
[404413049,1770118182458,-163.20854716,7.583e-05,2]
[404413050,1770118182497,500.0,7.582e-05,2]
[404413051,1770118182538,500.0,7.582e-05,2]
[404413052,1770118182581,500.0,7.582e-05,2]
[404413053,1770118182623,500.0,7.582e-05,2]
[404413054,1770118182661,500.0,7.582e-05,2]
[404413055,1770118182708,500.0,7.582e-05,2]
[404413056,1770118182756,500.0,7.582e-05,2]
[404413057,1770118182793,500.0,7.582e-05,2]
[404413058,1770118182830,500.0,7.582e-05,2]
[404413059,1770118182871,500.0,7.582e-05,2]
[404413060,1770118182909,485.16755471,7.582e-05,2]
[404413061,1770118182953,289.40861579,7.582e-05,2]
[404413062,1770118182977,210.59138421,7.582e-05,2]
[404413063,1770118183020,500.0,7.582e-05,2]
[404413064,1770118183058,500.0,7.582e-05,2]
[404413065,1770118183096,500.0,7.582e-05,2]
[404413066,1770118183141,500.0,7.582e-05,2]
[404413067,1770118183178,500.0,7.582e-05,2]
[404413068,1770118183606,-203.46109691,7.583e-05,2]
[404413069,1770118186199,-205.0,7.583e-05,2]
[404413070,1770118190988,-479.13010388,7.583e-05,2]
[404413071,1770118195098,-354.54012174,7.583e-05,2]
[404413072,1770118197954,-336.79145284,7.583e-05,2]
[404413073,1770118200628,-151.94693045,7.583e-05,2]
[404413074,1770118201634,300.0,7.582e-05,2]
[404413075,1770118201678,1200.0,7.582e-05,2]
[404413076,1770118202496,150.0,7.582e-05,2]
[404413077,1770118202554,300.0,7.582e-05,2]
[404413078,1770118202619,300.0,7.582e-05,2]
[404413079,1770118202710,-497.86351717,7.583e-05,2]
[404413080,1770118203729,214.0,7.583e-05,2]
[404413081,1770118204700,-800.03836094,7.583e-05,2]
[404413082,1770118206740,-354.90584462,7.583e-05,2]
[404413083,1770118210378,-205.68075659,7.583e-05,2]
[404413084,1770118214086,-424.51149527,7.583e-05,2]
[404413085,1770118215577,-360.47797617,7.583e-05,2]
[404413086,1770118217828,-342.604241,7.583e-05,2]
[404413087,1770118219320,-500.0,7.583e-05,2]
[404413088,1770118221904,-2866.63634917,7.583e-05,2]
[404413089,1770118223383,-481.07873741,7.583e-05,2]
[404413090,1770118223547,500.0,7.582e-05,2]
[404413091,1770118223604,500.0,7.582e-05,2]
[404413092,1770118223655,500.0,7.582e-05,2]
[404413093,1770118223704,500.0,7.582e-05,2]
[404413094,1770118223821,500.0,7.582e-05,2]
[404413095,1770118223876,478.32431416,7.582e-05,2]
[404413096,1770118223941,500.0,7.582e-05,2]
[404413097,1770118224024,500.0,7.582e-05,2]
[404413098,1770118224075,500.0,7.582e-05,2]
[404413099,1770118224129,347.09430163,7.582e-05,2]
[404413100,1770118224157,152.90569837,7.582e-05,2]
[404413101,1770118224231,500.0,7.582e-05,2]
[404413102,1770118224283,500.0,7.582e-05,2]
[404413103,1770118224368,500.0,7.582e-05,2]
[404413104,1770118224439,500.0,7.582e-05,2]
[404413105,1770118224489,500.0,7.582e-05,2]
[404413106,1770118224541,500.0,7.582e-05,2]
[404413107,1770118224593,500.0,7.582e-05,2]
[404413108,1770118224649,500.0,7.582e-05,2]
[404413109,1770118224705,500.0,7.582e-05,2]
[404413110,1770118224771,500.0,7.582e-05,2]
[404413111,1770118224847,500.0,7.582e-05,2]
[404413112,1770118224918,500.0,7.582e-05,2]
[404413113,1770118224984,500.0,7.582e-05,2]
[404413114,1770118225042,500.0,7.582e-05,2]
[404413115,1770118225139,500.0,7.582e-05,2]
[404413116,1770118225508,500.0,7.582e-05,2]
[404413117,1770118225598,500.0,7.582e-05,2]
[404413118,1770118226600,-500.0,7.583e-05,2]
[404413119,1770118227261,500.0,7.582e-05,2]
[404413120,1770118230504,-250.0,7.583e-05,2]
[404413126,1770118231665,-13563.52099581,7.583e-05,2]
[404413127,1770118231720,-1403.84725605,7.583e-05,2]
[404413129,1770118231774,-814.38407937,7.583e-05,2]
[404413150,1770118232517,-166.66000017,7.583e-05,2]
[404413151,1770118234943,-419.45347374,7.583e-05,2]
[404413154,1770118237764,-3310429.23748936,7.583e-05,2]
[404413155,1770118237774,-89306.5331,7.583e-05,2]
[404413156,1770118237783,-237.3167,7.583e-05,2]
[404413157,1770118237792,-250.0,7.592e-05,2]
[404413158,1770118237802,-427.19,7.6e-05,2]
[404413159,1770118237814,-401.0,7.645e-05,2]
[404413160,1770118237827,-5761.311,7.683e-05,2]
[404413161,1770118237846,-401.0,7.693e-05,2]
[404413162,1770118237855,-2300.0,7.7e-05,2]
[404413163,1770118237865,-1000.0,7.782e-05,2]
[404413164,1770118237874,-1000.0,7.782e-05,2]
[404413165,1770118237884,-401.0,7.797e-05,2]
[404413166,1770118237893,-4700.0,7.8e-05,2]
[404413167,1770118237906,-401.0,7.866e-05,2]
[404413168,1770118237915,-500.0,7.883e-05,2]
[404413169,1770118237925,-205.53,7.9e-05,2]
[404413170,1770118237935,-299.99,7.9e-05,2]
[404413171,1770118237944,-9999.99,7.9e-05,2]
[404413173,1770118237958,-9999.99,7.9e-05,2]
[404413174,1770118237968,-9999.99,7.9e-05,2]
[404413176,1770118237977,-150.99,7.9e-05,2]
[404413178,1770118237987,-9999.99,7.9e-05,2]
[404413180,1770118237997,-999.99,7.9e-05,2]
[404413182,1770118238007,-11639.09,7.9e-05,2]
[404413184,1770118238017,-150.99,7.9e-05,2]
[404413186,1770118238026,-792.54,7.9e-05,2]
[404413188,1770118238035,-7100.0,7.9e-05,2]
[404413190,1770118238048,-150.01122841,7.921e-05,2]
[404413192,1770118238060,-12230.872634,7.945e-05,2]
[404413194,1770118238070,-1876.03,7.969e-05,2]
[404413196,1770118238080,-9400.0,8e-05,2]
[404413198,1770118238092,-792.54,8.174e-05,2]
[404413200,1770118238101,-12617.988487,8.178e-05,2]
[404413202,1770118238110,-9999.99,8.178e-05,2]
[404413204,1770118238120,-500.0,8.219e-05,2]
[404413206,1770118238130,-500.0,8.219e-05,2]
[404413208,1770118238139,-500.0,8.219e-05,2]
[404413211,1770118238152,-500.0,8.219e-05,2]
[404413213,1770118238162,-500.0,8.219e-05,2]
[404413215,1770118238182,-500.0,8.219e-05,2]
[404413218,1770118238194,-585.19044627,8.219e-05,2]
[404413220,1770118238205,-500.0,8.219e-05,2]
[404413222,1770118238215,-500.0,8.219e-05,2]
[404413224,1770118238224,-1680.0,8.34e-05,2]
[404413226,1770118238234,-255.0,8.34e-05,2]
[404413228,1770118238245,-300.0,8.34e-05,2]
[404413230,1770118238255,-250.0,8.341e-05,2]
[404413232,1770118238265,-300.0,8.341e-05,2]
[404413234,1770118238275,-300.0,8.341e-05,2]
[404413236,1770118238285,-250.0,8.341e-05,2]
[404413238,1770118238295,-300.0,8.341e-05,2]
[404413240,1770118238304,-300.0,8.341e-05,2]
[404413242,1770118238314,-300.0,8.341e-05,2]
[404413244,1770118238326,-792.54,8.448e-05,2]
[404413270,1770118238643,-1386.37,8.542e-05,2]
[404413271,1770118238662,-500.0,8.624e-05,2]
[404413273,1770118238672,-500.0,8.683e-05,2]
[404413275,1770118238682,-20293.34,8.713e-05,2]
[404413277,1770118238691,-792.54,8.722e-05,2]
[404413279,1770118238701,-151.74,8.944e-05,2]
[404413281,1770118238711,-25175.95,8.979e-05,2]
[404413283,1770118238720,-792.54,8.996e-05,2]
[404413285,1770118238729,-911.95,9.112e-05,2]
[404413287,1770118238739,-500.0,9.133e-05,2]
[404413289,1770118238750,-150.01122841,9.168e-05,2]
[404413291,1770118238760,-2351.0,9.174e-05,2]
[404413292,1770118238769,-433.0,9.174e-05,2]
[404413295,1770118238781,-166.66,9.187e-05,2]
[404413297,1770118238790,-792.54,9.27e-05,2]
[404413299,1770118238801,-166.66,9.49e-05,2]
[404413301,1770118238812,-792.54,9.544e-05,2]
[404413303,1770118238821,-5573.74,9.785e-05,2]
[404413305,1770118238831,-166.66,9.793e-05,2]
[404413307,1770118238840,-792.54,9.818e-05,2]
[404413309,1770118238850,-170.34718645,0.0001,2]
[404413311,1770118238860,-1652.95,0.0001,2]
[404413313,1770118238869,-500.0,0.0001,2]
[404413315,1770118238879,-500.0,0.0001,2]
[404413317,1770118238889,-500.0,0.0001,2]
[404413319,1770118238899,-500.0,0.0001,2]
[404413320,1770118238909,-500.0,0.0001,2]
[404413323,1770118238920,-151.0,0.0001,2]
[404413324,1770118238930,-500.0,0.0001,2]
[404413327,1770118238940,-151.0,0.0001,2]
[404413329,1770118238950,-151.0,0.0001,2]
[404413330,1770118238960,-500.0,0.0001,2]
[404413333,1770118238970,-500.0,0.0001,2]
[404413335,1770118238979,-500.0,0.0001,2]
[404413337,1770118238989,-151.0,0.0001,2]
[404413339,1770118238999,-500.0,0.0001,2]
[404413340,1770118239010,-500.0,0.0001,2]
[404413343,1770118239025,-151.0,0.0001,2]
[404413345,1770118239035,-500.0,0.0001,2]
[404413347,1770118239044,-500.0,0.0001,2]
[404413349,1770118239053,-151.0,0.0001,2]
[404413351,1770118239063,-500.0,0.0001,2]
[404413353,1770118239073,-500.0,0.0001,2]
[404413355,1770118239082,-151.0,0.0001,2]
[404413357,1770118239093,-500.0,0.0001,2]
[404413359,1770118239104,-151.0,0.0001,2]
[404413361,1770118239114,-500.0,0.0001,2]
[404413363,1770118239124,-151.0,0.0001,2]
[404413365,1770118239133,-500.0,0.0001,2]
[404413367,1770118239142,-151.0,0.0001,2]
[404413369,1770118239152,-500.0,0.0001,2]
[404413371,1770118239162,-151.0,0.0001,2]
[404413373,1770118239171,-500.0,0.0001,2]
[404413375,1770118239180,-500.0,0.0001,2]
[404413377,1770118239189,-500.0,0.0001,2]
[404413379,1770118239199,-151.0,0.0001,2]
[404413381,1770118239209,-151.0,0.0001,2]
[404413383,1770118239219,-151.0,0.0001,2]
[404413385,1770118239228,-151.0,0.0001,2]
[404413387,1770118239239,-151.0,0.0001,2]
[404413389,1770118239249,-151.0,0.0001,2]
[404413391,1770118239259,-151.0,0.0001,2]
[404413393,1770118239268,-151.0,0.0001,2]
[404413395,1770118239278,-151.0,0.0001,2]
[404413397,1770118239288,-267.46801116,0.0001,2]
[404413399,1770118239298,-151.0,0.0001,2]
[404413401,1770118239308,-151.0,0.0001,2]
[404413403,1770118239321,-151.0,0.0001,2]
[404413405,1770118239335,-151.0,0.0001,2]
[404413407,1770118239346,-151.0,0.0001,2]
[404413409,1770118239355,-151.0,0.0001,2]
[404413411,1770118239366,-151.0,0.0001,2]
[404413413,1770118239378,-151.0,0.0001,2]
[404413415,1770118239387,-151.0,0.0001,2]
[404413416,1770118239398,-151.0,0.0001,2]
[404413417,1770118239409,-151.0,0.0001,2]
[404413418,1770118239422,-282.4058484,0.0001,2]
[404413419,1770118239433,-250.0,0.0001002,2]
[404413420,1770118239442,-792.54,0.00010092,2]
[404413421,1770118239452,-3292.0,0.00010092,2]
[404413422,1770118239461,-736.0,0.00010092,2]
[404413423,1770118239471,-166.66,0.00010097,2]
[404413424,1770118239481,-260.23313591,0.000101,2]
[404413425,1770118239491,-12882.18,0.00010104,2]
[404413426,1770118239500,-792.54,0.00010366,2]
[404413427,1770118239510,-166.66,0.000104,2]
[404413428,1770118239520,-150.01122841,0.00010414,2]
[404413429,1770118239530,-256.5,0.00010504,2]
[404413430,1770118239543,-792.54,0.0001064,2]
[404413431,1770118239563,-394.2,0.00010685,2]
[404413432,1770118239581,-268.69527082,0.000107,2]
[404413433,1770118239592,-166.66,0.00010703,2]
[404413434,1770118239602,-1029.43598608,0.000108,2]
[404413435,1770118239613,-11800.0,0.000109,3]
[404413436,1770118239634,-2662.46744209,0.000109,2]
[404413437,1770118239650,-2662.46744209,0.000109,2]
[404413438,1770118239659,-2662.46744209,0.000109,2]
[404413439,1770118239669,-792.54,0.00010914,2]
[404413440,1770118239679,-166.66,0.00010959,2]
[404413441,1770118239688,-150.0,0.00010959,2]
[404413442,1770118239699,-166.66,0.00011068,2]
[404413443,1770118239708,-151.0,0.00011096,2]
[404413444,1770118239719,-5408.27662591,0.00011099,2]
[404413445,1770118239730,-1185.0,0.000111,2]
[404413446,1770118239740,-4609.0,0.00011101,2]
[404413447,1770118239750,-166.66,0.00011178,2]
[404413448,1770118239759,-792.54,0.00011188,2]
[404413449,1770118239769,-221.68,0.00011233,2]
[404413450,1770118239779,-166.66,0.00011288,2]
[404413451,1770118239789,-166.66,0.00011397,2]